bitfinex-derivatives/quotes_ETHF0:USTF0_20260207
["timestamp","ask_amount","ask_price","bid_price","bid_amount"]
[1770430721623,11.96020734,2059.1,2058.1,11.4417767]
[1770430722222,11.96615188,2059.1,2058.1,11.4417767]
[1770430722725,11.96020734,2059.0,2057.9,11.4417767]
[1770430723028,11.96020734,2058.8,2057.9,11.4417767]
[1770430724225,11.96020734,2059.0,2057.9,11.4417767]
[1770430724624,11.96020734,2059.0,2057.7,14.30068987]
[1770430724932,11.96020734,2058.6,2057.7,11.4417767]
[1770430725229,11.96020734,2058.5,2057.7,11.4417767]
[1770430726137,11.96020734,2058.5,2057.3,11.4417767]
[1770430730332,11.96020734,2058.5,2057.3,11.6849767]
[1770430730536,11.96020734,2058.5,2057.4,11.4417767]
[1770430731232,11.96020734,2058.7,2057.6,11.4417767]
[1770430731436,11.96020734,2058.9,2057.8,11.4417767]
[1770430740446,11.96020734,2059.0,2057.8,14.30068987]
[1770430741243,0.00594454,2059.1,2058.3,11.4417767]
[1770430741443,11.96020734,2059.6,2058.5,11.6848267]
[1770430741834,11.96020734,2060.0,2058.8,11.4417767]
[1770430742138,11.96020734,2060.0,2058.9,0.243]
[1770430742339,11.96645698,2060.0,2059.0,11.4417767]
[1770430743339,11.96020734,2060.3,2059.2,11.6847467]
[1770430744541,11.96635446,2060.3,2059.2,11.4417767]
[1770430746847,11.96635446,2060.3,2058.9,0.00396817]
[1770430746848,11.20226087,2060.7,2059.5,11.63398114]
[1770430747047,7.46118422,2061.4,2059.8,11.63398114]
[1770430747048,11.20226087,2060.9,2059.8,11.63398114]
[1770430748145,11.20820791,2060.9,2059.8,11.63398114]
[1770430753249,11.20820791,2060.9,2059.8,11.94767717]
[1770430755352,11.07397279,2060.8,2059.8,11.94767717]
[1770430756151,11.07397279,2060.8,2059.8,12.19057717]
[1770430757047,0.00594704,2060.9,2060.1,11.54950564]
[1770430757248,11.07397279,2061.3,2060.1,11.54950564]
[1770430758447,11.08027723,2061.3,2060.1,11.30664564]
[1770430771852,11.07397279,2061.1,2059.9,11.30664564]
[1770430773257,11.07397279,2061.1,2060.0,11.30664564]
[1770430774853,0.00630444,2061.3,2060.4,11.30664564]
[1770430775061,11.07397279,2061.5,2060.6,11.30664564]
[1770430775354,11.07397279,2061.7,2060.7,13.3051753]
[1770430775854,11.07397279,2061.7,2060.9,11.53289994]
[1770430776052,0.0045711,2061.7,2060.9,13.53724067]
[1770430776252,0.0045711,2061.7,2060.9,11.53871101]
[1770430776253,11.2375869,2061.7,2060.9,11.53871101]
[1770430777851,0.0045711,2061.7,2060.9,11.53871101]
[1770430778360,0.0045711,2061.7,2060.9,14.40942112]
[1770430779758,0.0045711,2061.7,2061.0,11.53289994]
[1770430780365,11.2330158,2062.4,2061.5,11.53289994]
[1770430781156,11.2330158,2062.8,2061.5,11.53289994]
[1770430781352,11.23765702,2062.8,2061.5,11.53289994]
[1770430783264,11.23765702,2062.8,2061.7,11.53289994]
[1770430786054,0.00464122,2062.8,2061.9,11.53289994]
[1770430786259,0.00464122,2062.8,2062.1,11.53289994]
[1770430788056,11.2330158,2063.7,2062.1,11.53289994]
[1770430788566,11.2330158,2063.7,2062.4,11.53289994]
[1770430789062,11.23896132,2063.7,2062.4,11.53666043]
[1770430789265,11.2330158,2063.3,2062.4,0.00376049]
[1770430789669,11.2330158,2063.1,2062.1,11.53289994]
[1770430790368,11.2330158,2063.1,2061.4,11.53289994]
[1770430790565,11.2330158,2062.9,2061.4,11.53289994]
[1770430790762,11.2330158,2062.9,2061.4,11.53631246]
[1770430791168,11.4755858,2062.6,2061.4,0.00341252]
[1770430791365,11.2330158,2062.5,2061.4,11.53631246]
[1770430791869,11.2330158,2062.0,2060.5,11.53289994]
[1770430792661,11.23797676,2062.0,2060.5,11.53661928]
[1770430796873,11.2330158,2061.7,2060.5,0.00371934]
[1770430797073,11.4756958,2061.7,2060.5,0.00371934]
[1770430797371,11.2330158,2061.5,2060.5,0.00371934]
[1770430799169,11.4757158,2061.5,2060.1,11.53289994]
[1770430799370,11.2330158,2061.0,2059.5,11.53289994]
[1770430800374,11.2330158,2061.0,2059.5,11.5365706]
[1770430800573,11.2330158,2060.8,2059.5,11.5365706]
[1770430801177,11.2330158,2060.6,2059.5,0.00367066]
[1770430802076,11.2330158,2060.4,2059.5,0.00367066]
[1770430802273,11.23778115,2060.4,2059.5,0.00367066]
[1770430802671,11.23778115,2060.4,2059.5,11.53289994]
[1770430803677,11.23778115,2060.4,2059.5,11.53774941]
[1770430804485,11.23778115,2060.4,2059.5,0.00484947]
[1770430804777,11.23778115,2060.4,2059.5,11.53774941]
[1770430806274,11.23778115,2060.4,2059.5,0.00484947]
[1770430809479,11.23778115,2060.4,2059.5,10.99895581]
[1770430811383,0.00476535,2060.4,2059.5,10.99895581]
[1770430812283,0.00476535,2060.4,2059.7,10.99410634]
[1770430813678,11.57015266,2060.4,2059.7,10.99410634]
[1770430814079,0.00476535,2060.4,2059.7,10.99410634]
[1770430815379,11.56538731,2061.6,2059.7,10.99410634]
[1770430815585,11.56538731,2061.6,2060.0,10.99410634]
[1770430816180,11.56538731,2061.6,2060.0,11.23698634]
[1770430816580,11.56962348,2061.6,2060.0,11.23698634]
[1770430819280,11.56962348,2061.6,2060.3,11.23694634]
[1770430819680,11.56962348,2061.6,2060.5,10.99410634]
[1770430820989,11.56962348,2061.6,2060.5,11.23692634]
[1770430823895,11.56962348,2061.6,2060.5,10.99410634]
[1770430825492,11.81231348,2061.6,2060.5,10.99410634]
[1770430826597,11.81231348,2061.6,2060.1,0.24287]
[1770430826794,11.81231348,2061.6,2060.2,10.99410634]
[1770430828095,11.56962348,2061.6,2060.5,10.99410634]
[1770430828293,11.56962348,2061.6,2060.5,11.23692634]
[1770430829599,11.56962348,2061.6,2060.1,4.30794597]
[1770430829600,11.56538731,2061.4,2060.1,10.99410634]
[1770430834301,11.56538731,2061.4,2060.3,10.99410634]
[1770430840105,11.56538731,2061.4,2060.3,11.23694634]
[1770430840302,11.56538731,2061.4,2060.4,11.70966799]
[1770430841300,11.56538731,2061.4,2060.5,11.70966799]
[1770430841900,11.21978063,2061.6,2060.5,11.95248799]
[1770430842102,11.21978063,2061.6,2060.6,11.70966799]
[1770430845106,11.21978063,2061.6,2060.4,2.87473152]
[1770430845406,11.21978063,2061.6,2060.4,14.58439951]
[1770430845606,11.21978063,2061.6,2060.4,11.70966799]
[1770430851910,11.21978063,2061.6,2060.0,14.58439951]
[1770430851911,11.45826446,2061.4,2060.0,14.58439951]
[1770430852106,11.45826446,2061.4,2060.0,11.70966799]
[1770430852107,11.21554446,2061.1,2060.0,11.70966799]
[1770430852310,11.21554446,2060.9,2059.8,11.70966799]
[1770430862010,0.24279,2060.8,2059.6,11.70966799]
[1770430862215,11.21554446,2060.7,2059.5,11.71451746]
[1770430863123,11.21554446,2060.8,2059.5,11.71451746]
[1770430863625,11.21554446,2060.8,2059.7,11.70966799]
[1770430863924,11.21554446,2061.2,2059.9,11.70966799]
[1770430864724,11.21554446,2061.4,2060.1,11.95253799]
[1770430866817,11.21554446,2061.4,2060.1,11.70966799]
[1770430867019,11.12344869,2061.2,2060.1,11.70966799]
[1770430867414,11.12344869,2061.2,2059.7,2.87473152]
[1770430867415,11.12344869,2061.0,2059.8,10.82775376]
[1770430867621,11.36621869,2061.0,2059.8,10.82775376]
[1770430870719,11.85500641,2061.4,2060.0,11.90478285]
[1770430871225,11.85924258,2061.6,2060.5,0.24282]
[1770430871426,11.85924258,2061.6,2060.6,11.90478285]
[1770430872516,0.00423617,2061.6,2060.6,11.90478285]
[1770430872823,11.85500641,2062.0,2060.8,11.90478285]
[1770430873614,11.85854266,2062.0,2060.8,11.90478285]
[1770430874226,11.85854266,2062.0,2060.7,0.2428]
[1770430874227,11.85854266,2062.0,2061.0,11.90478285]
[1770430874421,11.85854266,2062.0,2061.0,11.90892005]
[1770430874621,0.00353625,2062.0,2061.0,11.90892005]
[1770430875923,0.00353625,2062.0,2061.2,11.90478285]
[1770430876127,11.85500641,2062.4,2061.2,11.90478285]
[1770430876128,11.85500641,2062.8,2061.2,11.90478285]
[1770430877123,11.85993822,2062.8,2061.2,12.14751285]
[1770430877320,11.85993822,2062.8,2061.4,12.14749285]
[1770430878328,11.85993822,2062.8,2061.4,11.90478285]
[1770430879028,12.10249822,2062.8,2061.4,11.90478285]
[1770430879228,11.85993822,2062.8,2061.4,11.90478285]
[1770430879825,11.85993822,2062.8,2061.0,11.90892005]
[1770430879826,11.85500641,2062.5,2061.0,11.90892005]
[1770430880133,11.85500641,2062.1,2061.0,11.90892005]
[1770430882031,12.09764641,2062.1,2061.0,11.90892005]
[1770430882329,12.09764641,2062.1,2061.0,0.0041372]
[1770430883831,12.09764641,2062.1,2061.0,11.90892005]
[1770430885328,11.85500641,2062.1,2061.0,0.0041372]
[1770430885628,11.85500641,2061.6,2060.6,11.90478285]
[1770430885828,11.85500641,2061.6,2060.0,11.90478285]
[1770430886630,11.85500641,2061.6,2060.0,11.91081019]
[1770430887130,12.09769641,2061.6,2060.0,11.91081019]
[1770430887430,11.85500641,2061.4,2060.0,11.91081019]
[1770430892137,11.85500641,2061.2,2060.0,11.91081019]
[1770430892433,11.85866391,2061.2,2060.0,11.91081019]
[1770430895329,12.10140391,2061.2,2060.0,11.91081019]
[1770430896136,0.0036575,2061.2,2060.3,11.1729501]
[1770430896542,0.0036575,2061.2,2060.3,11.4157901]
[1770430896740,11.28674608,2062.1,2060.5,11.4157701]
[1770430897242,11.28674608,2062.1,2060.7,11.1729501]
[1770430897647,11.29067313,2062.1,2060.7,11.1729501]
[1770430898451,11.29067313,2062.1,2060.7,11.4157501]
[1770430898651,11.29067313,2062.1,2060.9,11.1729501]
[1770430899252,0.00392705,2062.1,2060.9,11.4157101]
[1770430899854,0.00392705,2062.1,2061.1,11.4157001]
[1770430900051,2.62055,2062.8,2061.0,4.53572801]
[1770430900052,11.28674608,2062.7,2061.3,11.1729501]
[1770430900948,11.29255407,2062.7,2061.3,11.1729501]
[1770430901147,11.28674608,2062.5,2061.1,11.1729501]
[1770430901350,11.28674608,2062.3,2061.1,11.1729501]
[1770430903556,0.2426,2062.4,2061.1,11.1729501]
[1770430903557,11.28674608,2062.1,2061.1,11.1729501]
[1770430904549,11.28674608,2062.1,2060.7,11.1729501]
[1770430913259,11.28674608,2061.8,2060.7,11.1729501]
[1770430913468,11.28674608,2061.7,2060.7,11.1729501]
[1770430918463,11.21164125,2062.2,2060.7,11.1729501]
[1770430918661,11.28674608,2061.9,2060.7,11.4157401]
[1770430920964,11.28674608,2061.6,2060.7,11.1729501]
[1770430921266,11.28674608,2062.1,2060.7,11.1729501]
[1770430921867,11.28674608,2062.1,2060.9,11.1729501]
[1770430925061,18.54035161,2062.5,2061.2,11.1729501]
[1770430925269,11.28674608,2062.6,2061.8,11.1729501]
[1770430925569,11.28674608,2062.6,2061.8,11.17839432]
[1770430926770,9.28674608,2062.6,2061.8,11.17839432]
[1770430927170,9.28674608,2062.6,2061.8,10.80677189]
[1770430927467,9.28674608,2062.6,2061.8,0.00544422]
[1770430927671,9.28674608,2062.6,2061.6,10.80132767]
[1770430928677,9.28674608,2062.6,2061.6,10.80683599]
[1770430937174,11.05013559,2062.4,2061.6,10.80683599]
[1770430940178,11.29273559,2062.4,2061.4,11.7964053]
[1770430940679,11.29275559,2062.2,2061.2,11.7964053]
[1770430941283,11.29275559,2062.2,2061.2,11.80245487]
[1770430942177,7.25360553,2062.5,2061.2,11.80245487]
[1770430942384,11.05013559,2062.4,2061.2,11.80245487]
[1770430948290,11.05013559,2062.4,2061.2,14.6704415]
[1770430951290,11.05013559,2062.4,2061.4,11.7964053]
[1770430953396,11.05013559,2062.6,2061.6,11.7964053]
[1770430954598,11.05013559,2062.1,2061.2,11.80245487]
[1770430955595,11.05013559,2062.1,2061.2,0.00604957]
[1770430956096,11.05013559,2062.1,2061.2,11.11888333]
[1770430963094,11.0209273,2062.4,2061.2,11.11888333]
[1770430963301,11.0209273,2062.4,2061.3,11.11283376]
[1770430963602,11.2635373,2062.3,2061.2,0.00604957]
[1770430964602,11.2635373,2062.3,2061.2,11.11888333]
[1770430965605,11.0209273,2062.2,2061.2,11.11888333]
[1770430980318,11.0209273,2061.9,2061.2,0.00604957]
[1770430981417,11.0209273,2061.9,2061.2,11.11888333]
[1770430981819,11.0209273,2061.9,2061.2,0.00604957]
[1770430982022,11.0209273,2061.9,2061.2,11.11888333]
[1770430983415,7.25360553,2062.2,2061.2,11.11888333]
[1770430983615,11.0209273,2062.3,2061.2,11.11888333]
[1770430984224,11.2635373,2062.3,2061.2,11.11888333]
[1770430984426,11.0209273,2062.1,2061.2,11.11888333]
[1770430985330,18.27453283,2062.1,2061.2,0.00604957]
[1770430985528,11.0209273,2062.0,2061.2,0.00604957]
[1770430985924,11.28011639,2061.9,2061.2,0.00604957]
[1770430986120,11.52277639,2061.9,2060.9,11.54925655]
[1770430986324,11.28011639,2061.8,2060.7,11.54925655]
[1770430987125,11.28011639,2061.8,2060.7,11.55350715]
[1770430992834,11.52278639,2061.8,2060.7,11.55350715]
[1770430994932,11.94172369,2061.5,2060.7,0.0042506]
[1770430996038,11.94172369,2061.5,2060.7,10.96778728]
[1770430998833,11.94172369,2061.6,2060.7,10.96778728]
[1770430999040,11.94172369,2062.0,2060.7,10.96778728]
[1770431002536,11.94172369,2061.5,2060.7,10.96778728]
[1770431005540,12.18441369,2061.6,2060.7,10.96778728]
[1770431009845,11.94172369,2061.4,2060.7,0.0042506]
[1770431013141,11.94172369,2061.4,2060.7,10.96778728]
[1770431013445,11.94172369,2061.7,2060.7,10.96778728]
[1770431021053,11.94172369,2061.7,2060.8,11.65126528]
[1770431025451,11.2784518,2062.0,2061.0,11.65126528]
[1770431029053,11.2784518,2061.9,2061.0,11.65126528]
[1770431040656,11.2784518,2061.5,2060.7,11.65551588]
[1770431041455,11.2784518,2061.4,2060.7,11.65551588]
[1770431044768,17.09059675,2061.5,2060.7,11.65551588]
[1770431044966,11.2784518,2061.5,2060.7,11.65551588]
[1770431048968,7.25360553,2061.8,2060.7,11.89830588]
[1770431048969,5.81214495,2061.8,2060.7,11.89830588]
[1770431049170,11.71940359,2062.0,2061.0,11.24112573]
[1770431058972,11.71940359,2062.0,2061.1,11.24112573]
[1770431061269,11.71940359,2062.0,2060.9,2.88704078]
[1770431061270,11.71940359,2061.5,2060.7,14.13241711]
[1770431061476,11.71940359,2061.5,2060.7,11.24537633]
[1770431076485,11.71940359,2061.5,2060.7,11.48817633]
[1770431082891,8.94696664,2062.1,2060.8,11.10053226]
[1770431082892,11.16369545,2061.7,2060.8,11.10053226]
[1770431083192,11.16369545,2061.9,2061.0,11.10053226]
[1770431089904,11.16369545,2061.9,2060.9,11.10053226]
[1770431092104,11.16369545,2062.0,2061.0,11.10053226]
[1770431092303,11.16369545,2062.0,2061.2,11.10053226]
[1770431093109,11.16369545,2062.0,2061.2,11.34326226]
[1770431094007,11.16369545,2062.3,2061.2,11.34326226]
[1770431094910,11.16369545,2062.3,2061.3,11.10053226]
[1770431096813,11.16369545,2062.3,2061.4,11.10053226]
[1770431097313,11.16369545,2062.6,2061.6,11.10053226]
[1770431098110,11.16369545,2062.6,2061.6,11.34321226]
[1770431100212,0.00580799,2062.7,2061.8,11.10053226]
[1770431100213,11.16950344,2062.7,2061.8,11.10053226]
[1770431100817,0.00580799,2062.7,2061.8,11.10053226]
[1770431102419,11.16369545,2063.1,2062.2,11.10053226]
[1770431103412,11.16369545,2062.8,2062.2,11.10512459]
[1770431104416,2.79508524,2062.9,2062.2,11.10512459]
[1770431104617,7.25360553,2063.8,2062.2,11.10512459]
[1770431104618,11.16369545,2063.4,2062.6,11.10053226]
[1770431104819,11.16369545,2063.6,2062.9,11.10053226]
[1770431105716,11.16729007,2063.6,2062.9,11.10053226]
[1770431105919,0.00359462,2063.6,2062.9,11.10053226]
[1770431106822,11.70373111,2063.6,2062.9,11.10053226]
[1770431107216,11.70013649,2063.4,2062.9,11.10053226]
[1770431107910,11.70013649,2063.9,2062.9,11.10053226]
[1770431108114,11.70013649,2064.0,2063.2,11.10652566]
[1770431108814,11.70013649,2064.0,2062.7,11.23107564]
[1770431109019,11.70467388,2064.0,2062.7,11.23107564]
[1770431111824,11.78903844,2064.0,2062.7,11.23107564]
[1770431114420,11.70467388,2064.0,2062.7,11.47363564]
[1770431114923,0.00453739,2064.0,2063.4,11.23107564]
[1770431115124,9.63060553,2065.0,2063.4,11.23107564]
[1770431115125,11.55848796,2064.4,2063.4,11.23107564]
[1770431115918,2.377,2065.0,2063.4,11.47355564]
[1770431116126,11.55848796,2064.6,2063.4,11.47355564]
[1770431116323,11.55848796,2064.8,2063.6,11.23107564]
[1770431117322,11.56236401,2065.0,2064.0,11.47348564]
[1770431117518,11.56236401,2065.0,2064.0,11.47844465]
[1770431118223,0.00387605,2065.0,2064.0,11.47844465]
[1770431119129,11.56236401,2065.0,2064.0,11.47844465]
[1770431119324,11.56236401,2065.0,2064.0,11.23603465]
[1770431120724,0.00387605,2065.0,2064.0,11.23603465]
[1770431120925,11.56236401,2065.0,2064.2,11.23107564]
[1770431122826,0.00387605,2065.0,2064.2,11.23107564]
[1770431123329,11.56236401,2065.0,2064.2,11.23107564]
[1770431126432,11.56236401,2065.0,2064.0,11.23603465]
[1770431128231,11.56236401,2065.0,2064.2,11.23107564]
[1770431129334,11.56236401,2065.0,2064.0,0.00495901]
[1770431129537,11.56236401,2065.0,2064.0,11.23603465]
[1770431130535,11.55848796,2064.8,2064.0,0.00495901]
[1770431130739,11.80080796,2064.8,2063.6,11.23107564]
[1770431131832,11.80080796,2064.8,2063.6,11.23492034]
[1770431132138,11.55848796,2064.8,2063.6,11.47737034]
[1770431132541,11.55848796,2064.8,2063.8,11.23107564]
[1770431133033,11.55848796,2064.8,2063.8,11.47350564]
[1770431133837,11.56236401,2065.0,2063.8,11.47350564]
[1770431134531,11.56236401,2065.0,2063.9,11.23107564]
[1770431134938,11.56236401,2065.0,2063.9,11.47349564]
[1770431135337,11.56236401,2065.0,2063.9,11.23107564]
[1770431135532,11.56236401,2065.0,2064.2,11.23107564]
[1770431135533,0.00387605,2065.0,2064.2,11.23107564]
[1770431136541,0.00387605,2065.0,2064.2,11.47345564]
[1770431136735,0.00387605,2065.0,2064.0,2.84431572]
[1770431136736,10.81004113,2065.4,2064.4,11.72495807]
[1770431136938,10.81004113,2065.7,2064.6,11.72495807]
[1770431137343,10.81004113,2065.7,2064.6,11.96728807]
[1770431137841,10.81586079,2065.7,2064.6,11.96728807]
[1770431138941,10.81004113,2066.2,2064.8,11.72495807]
[1770431139237,10.81004113,2066.2,2065.2,11.72495807]
[1770431140036,10.81392835,2066.2,2065.2,11.73039768]
[1770431141043,0.00388722,2066.2,2065.2,11.73039768]
[1770431141243,10.81392835,2066.2,2065.2,11.73039768]
[1770431143243,0.00388722,2066.2,2065.2,11.73039768]
[1770431143444,10.81392835,2066.2,2065.2,11.73039768]
[1770431145441,14.76487135,2066.2,2065.2,0.00543961]
[1770431145641,10.81004113,2065.8,2064.6,11.72495807]
[1770431146042,0.24223,2065.6,2064.2,11.72495807]
[1770431146342,10.81004113,2065.5,2064.2,11.72495807]
[1770431146647,10.81004113,2065.5,2064.2,11.7301783]
[1770431148443,11.96091326,2064.6,2064.1,0.2424]
[1770431148939,11.96091326,2064.6,2063.7,2.84450933]
[1770431149648,11.96481547,2064.6,2063.7,7.736691]
[1770431149843,11.96481547,2064.6,2063.7,3.09194318]
[1770431150448,10.96481547,2064.6,2063.8,0.60925264]
[1770431153947,10.96481547,2064.6,2063.7,0.00499385]
[1770431154253,11.45298592,2064.2,2063.2,1.01585469]
[1770431155152,11.45298592,2064.2,2063.2,1.02189236]
[1770431156449,11.45298592,2064.2,2063.2,0.00603767]
[1770431157254,11.49846345,2063.8,2063.0,1.02205921]
[1770431157760,11.49846345,2063.8,2063.1,0.77953921]
[1770431158258,11.49846345,2063.8,2063.1,0.00533407]
[1770431158853,11.49846345,2063.8,2062.7,0.77953921]
[1770431159657,11.49846345,2063.8,2062.7,1.02209921]
[1770431159948,11.49846345,2063.8,2062.8,0.82130119]
[1770431160748,11.55026267,2064.2,2063.2,1.06380119]
[1770431160953,11.55026267,2064.2,2063.4,0.82130119]
[1770431161552,0.00390221,2064.6,2063.5,0.98917706]
[1770431161757,0.00390221,2064.6,2063.7,0.98917706]
[1770431162550,0.00390221,2064.6,2064.0,0.98917706]
[1770431163758,11.68812458,2064.6,2063.6,0.55338178]
[1770431164862,11.68812458,2064.6,2063.5,0.55338178]
[1770431165558,15.63400569,2064.6,2063.1,0.82324764]
[1770431165766,15.63400569,2064.6,2063.0,0.82324764]
[1770431165767,11.55547474,2064.5,2063.0,0.82324764]
[1770431167364,11.55547474,2064.5,2063.4,0.88849951]
[1770431168962,11.55547474,2064.5,2063.5,0.88562217]
[1770431170963,11.55547474,2064.5,2063.5,0.80080385]
[1770431174970,11.55547474,2064.5,2063.6,0.86721713]
[1770431178866,11.83739538,2064.6,2063.9,0.8418602]
[1770431179263,11.83739538,2064.6,2064.0,0.8418602]
[1770431182168,11.83739538,2064.6,2063.9,1.05592667]
[1770431182574,11.83739538,2064.6,2064.0,0.81351667]
[1770431182771,11.83739538,2064.6,2063.8,2.84450933]
[1770431182971,11.83349317,2064.5,2063.1,4.30794597]
[1770431183173,11.83349317,2064.5,2063.1,0.81351667]
[1770431184273,12.07584317,2064.5,2062.9,5.14968626]
[1770431184477,12.07584317,2064.5,2062.9,0.84174029]
[1770431185569,11.83349317,2064.5,2062.8,4.30794597]
[1770431185771,11.83349317,2064.2,2062.7,0.81267847]
[1770431187580,11.83349317,2064.2,2062.8,0.71921072]
[1770431187785,11.83349317,2064.2,2062.7,0.96589752]
[1770431188781,11.83349317,2064.2,2062.8,0.71921072]
[1770431189175,11.83349317,2064.2,2062.7,0.2466868]
[1770431189176,11.83349317,2064.2,2062.7,4.55463277]
[1770431189370,11.83349317,2064.2,2062.7,0.93088863]
[1770431190282,0.24242,2063.9,2062.7,0.0041368]
[1770431190585,11.83349317,2063.8,2062.7,0.0041368]
[1770431191882,11.83349317,2063.8,2062.2,0.91382958]
[1770431191883,12.07592317,2063.8,2062.2,0.91382958]
[1770431192478,12.07595317,2063.6,2062.0,0.67534638]
[1770431192684,11.83349317,2063.5,2061.9,0.67534638]
[1770431193084,11.83349317,2063.5,2061.9,0.68073403]
[1770431193382,12.07597317,2063.5,2061.9,0.68073403]
[1770431193584,11.83349317,2063.3,2061.9,0.00538765]
[1770431193984,11.83349317,2063.3,2061.9,0.58970949]
[1770431197085,11.83349317,2063.3,2061.9,0.00538765]
[1770431197286,11.83349317,2063.3,2061.9,0.50262898]
[1770431198582,11.83349317,2063.3,2061.9,0.00538765]
[1770431199482,12.07598317,2063.3,2061.9,0.00538765]
[1770431203590,11.83349317,2063.3,2062.1,0.60127038]
[1770431203992,11.83349317,2063.3,2062.2,0.60127038]
[1770431204991,11.83349317,2063.3,2061.9,0.00538765]
[1770431205192,11.74791102,2063.0,2061.9,0.00538765]
[1770431205387,11.99449226,2063.0,2061.9,0.00538765]
[1770431205894,11.75196226,2063.0,2061.9,0.00538765]
[1770431206689,11.75196226,2063.0,2061.9,0.24803765]
[1770431206993,11.75196226,2063.0,2061.9,0.00538765]
[1770431209195,11.75196226,2063.0,2062.0,0.27094926]
[1770431213699,11.75196226,2063.0,2061.9,0.00538765]
[1770431215002,11.99449226,2063.0,2061.9,0.00538765]
[1770431215206,11.99449226,2063.0,2061.4,0.1939408]
[1770431215207,11.86650848,2062.9,2061.4,0.1939408]
[1770431215402,11.84543774,2062.8,2061.4,0.1939408]
[1770431216203,11.84543774,2062.8,2061.4,0.19872372]
[1770431218410,11.84121252,2062.7,2061.4,0.19872372]
[1770431219309,11.84121252,2062.7,2061.6,0.23977993]
[1770431220410,11.84121252,2062.7,2061.6,4.74467212]
[1770431220607,11.84121252,2062.7,2061.6,0.23977993]
[1770431221004,11.84121252,2062.7,2061.6,4.51738667]
[1770431221210,11.84628274,2062.6,2061.4,4.55250882]
[1770431221504,11.84628274,2062.6,2061.5,4.52001876]
[1770431221709,11.84628274,2062.6,2061.4,4.55250882]
[1770431221909,11.84628274,2062.6,2061.5,4.51976015]
[1770431222105,17.6378697,2062.5,2061.4,0.00478292]
[1770431222304,11.86759692,2062.4,2061.4,0.00478292]
[1770431222504,11.86759692,2062.3,2061.4,0.00478292]
[1770431222703,17.6378697,2062.3,2061.4,0.00478292]
[1770431222904,11.86759692,2062.2,2061.4,0.00478292]
[1770431228515,11.86759692,2062.2,2061.4,4.5206511]
[1770431230517,11.86759692,2062.2,2061.4,4.7633611]
[1770431231717,11.86759692,2062.2,2061.4,0.24749292]
[1770431232219,11.86759692,2062.2,2061.4,4.76377849]
[1770431232419,11.86759692,2062.2,2061.4,0.24749292]
[1770431232621,11.86759692,2062.2,2061.5,4.51634742]
[1770431232917,11.86759692,2062.2,2061.4,0.24749292]
[1770431233722,11.86759692,2062.2,2061.4,4.52177264]
[1770431233915,11.86759692,2062.2,2061.4,0.00478292]
[1770431248434,11.97180801,2062.1,2061.4,0.00478292]
[1770431255538,11.97180801,2061.9,2061.4,0.00478292]
[1770431259250,11.97220485,2061.6,2061.2,2.87604622]
[1770431259450,11.3014786,2061.4,2060.8,2.84814809]
[1770431259657,11.3014786,2061.4,2060.7,2.84814809]
[1770431259850,11.3014786,2061.4,2060.8,4.5567498]
[1770431260050,14.09865592,2061.4,2060.6,0.2428]
[1770431260247,14.10312022,2061.4,2060.6,4.63465501]
[1770431260452,14.10312022,2061.4,2060.6,0.2483003]
[1770431260652,14.10312022,2061.4,2060.6,0.0055003]
[1770431261344,11.3059429,2061.4,2060.6,0.0055003]
[1770431263554,11.3059429,2061.4,2060.2,2.67568042]
[1770431263848,11.3059429,2061.4,2060.1,2.68118072]
[1770431264248,11.3059429,2061.4,2059.9,2.68118072]
[1770431264654,11.3014786,2061.3,2059.9,2.68607102]
[1770431264856,11.3014786,2061.3,2060.1,2.68118072]
[1770431265051,11.3014786,2061.3,2060.3,2.68118072]
[1770431265558,11.3014786,2061.3,2060.5,2.67210059]
[1770431267358,0.0044643,2061.4,2060.7,2.67210059]
[1770431268058,11.3059429,2061.4,2060.7,2.67210059]
[1770431268458,0.0044643,2061.4,2060.7,2.91489059]
[1770431268659,11.3014786,2061.4,2060.9,2.49958709]
[1770431269658,11.30652356,2061.4,2060.9,2.49958709]
[1770431270358,11.30652356,2061.4,2060.7,3.05632846]
[1770431270558,11.30652356,2061.4,2060.9,2.81353846]
[1770431271060,11.3014786,2062.3,2061.1,2.81353846]
[1770431272061,11.3014786,2062.3,2060.8,0.24278]
[1770431272062,11.30759777,2062.3,2060.9,2.80239973]
[1770431272256,11.30759777,2062.3,2061.0,7.16429652]
[1770431272458,11.30759777,2062.3,2061.0,2.80239973]
[1770431274665,11.30759777,2062.3,2060.8,2.9712046]
[1770431274864,11.30759777,2062.3,2061.0,2.7284246]
[1770431275364,11.3014786,2062.2,2061.0,2.7284246]
[1770431275560,17.11971854,2062.2,2060.9,2.7452668]
[1770431275766,11.3014786,2061.9,2060.9,2.7452668]
[1770431276465,11.3014786,2061.9,2060.8,2.9880468]
[1770431276665,11.3014786,2061.9,2060.8,0.24278]
[1770431276966,11.3014786,2061.9,2060.5,2.7452668]
[1770431277156,11.3014786,2061.9,2060.6,7.11017475]
[1770431277362,11.3014786,2061.5,2060.4,2.7452668]
[1770431277560,11.3014786,2061.5,2060.3,3.01278588]
[1770431278761,11.3014786,2061.5,2060.2,2.76994588]
[1770431278960,11.3014786,2061.4,2060.2,2.76994588]
[1770431279156,11.3014786,2061.3,2060.2,2.76994588]
[1770431279761,3.95824798,2061.2,2059.9,0.0048903]
[1770431279966,11.3014786,2061.1,2059.9,4.37143398]
[1770431280259,11.3014786,2061.1,2059.9,0.0048903]
[1770431280464,11.3014786,2061.1,2060.0,2.79479315]
[1770431281060,11.3014786,2061.1,2060.2,2.79479315]
[1770431281661,11.3014786,2061.1,2060.4,2.80720024]
[1770431282062,11.3014786,2061.1,2060.0,2.80720024]
[1770431282264,11.3014786,2061.1,2059.9,2.81209054]
[1770431282466,11.3014786,2061.1,2060.1,2.80720024]
[1770431283169,11.3014786,2061.1,2060.1,3.05006024]
[1770431289672,11.77904073,2061.3,2060.5,2.81055706]
[1770431289873,11.77904073,2061.4,2060.5,3.05337706]
[1770431290272,11.77904073,2061.4,2060.7,2.81055706]
[1770431290668,11.77904073,2061.4,2060.5,2.81055706]
[1770431290975,11.77904073,2061.4,2060.5,3.05336706]
[1770431293278,11.77904073,2061.4,2060.5,0.24281]
[1770431294677,11.77904073,2061.4,2060.5,3.45370791]
[1770431298280,11.77904073,2061.4,2060.5,3.24227995]
[1770431299181,11.77904073,2061.4,2060.3,2.99946995]
[1770431299784,11.77904073,2061.4,2060.2,2.93026506]
[1770431300185,11.77904073,2061.4,2060.1,4.56174988]
[1770431300480,11.77904073,2061.2,2060.1,0.24286]
[1770431301881,11.77904073,2061.2,2059.9,4.32378018]
[1770431301882,11.77904073,2061.0,2059.9,0.0048903]
[1770431302073,11.77904073,2060.9,2059.9,0.0048903]
[1770431303686,11.77904073,2060.9,2059.9,3.08991914]
[1770431308387,11.77904073,2060.9,2060.1,2.99904296]
[1770431309688,11.77904073,2060.9,2060.5,3.00490378]
[1770431309890,11.77904073,2061.1,2060.5,3.00490378]
[1770431310591,11.77904073,2061.6,2060.5,3.00490378]
[1770431311985,11.77904073,2061.6,2060.7,5.23510917]
[1770431312688,11.77904073,2061.6,2060.7,5.47789917]
[1770431312884,11.77904073,2061.6,2060.7,0.24279]
[1770431313590,11.77904073,2061.6,2060.7,5.42177066]
[1770431316892,11.13758816,2062.0,2061.1,5.18179249]